Cogmind - Beta 16.1 @@@ ROGUE MODE // 2026.03.12 @ 20:01:49 Player: KURIIRI Result: Destroyed by Y-45 Defender with Beam Rifle Performance ------------- Evolutions (2) 1000 Regions Visited (11) 2200 Robots Destroyed (167) 835 Value Destroyed (8044) 8044 Prototype IDs (37) 740 Alien Tech Used (0) 0 Bonus (2377) 2377 TOTAL SCORE: 15196 Bonus ------- High Alert Combat Kills 1113 Follower Combat Kills 591 Entered Garrisons 600 Aligned with FarCom 300 Friendly Fire -227 Cogmind --------- Core Integrity 0/550 Matter 300/300 Energy 100/100 System Corruption 16% Temperature Cool (9) Movement Treading (157) Location -8/Materials Parts ------- > --- POWER (1) -------- (None) > --- PROPULSION (3) --- Armored Treads Advanced Treads > --- UTILITY (5) ------ Large Storage Unit Advanced Targeting Computer Light Armor Plating Hacking Suite > --- WEAPON (2) ------- Great Maul > --- INVENTORY (15) --- Fission Core Advanced Treads IFF Parser Advanced Beam Rifle Improved EM Pulse Cannon Proton Cannon Advanced EMP Blaster Advanced EMP Blaster Peak State ------------ > --- POWER ------------ Nuclear Core > --- PROPULSION ------- Armored Treads Advanced Treads Compact Wheel > --- UTILITY ---------- Large Storage Unit Advanced Targeting Computer Hardened Medium Armor Plating Layered Medium Armor Plating Hacking Suite > --- WEAPON ----------- Proton Cannon Great Maul > --- INVENTORY -------- Fission Core Advanced Treads Advanced Treads IFF Parser Light Armor Plating Light Armor Plating Hacking Suite EM Pulse Cannon EM Pulse Cannon EM Pulse Cannon Assault Cannon Heavy Flak Cannon Advanced EMP Blaster Advanced EMP Blaster Remote Datajack [Rating: 38] Favorites ----------- Power Ion Engine Engine Ion Engine Power Core Nuclear Core Propulsion Advanced Treads Treads Advanced Treads Leg Aluminum Leg Wheel Compact Wheel Utility Large Storage Unit Device Improved Heat Sink Storage Large Storage Unit Processor Advanced Targeting Computer Hackware Hacking Suite Protection Light Armor Plating Weapon Shock Rifle Energy Gun Shock Rifle Energy Cannon EM Pulse Cannon Ballistic Gun Assault Rifle Ballistic Cannon Advanced Assault Cannon Launcher Advanced EMP Blaster Special Weapon Remote Datajack Impact Weapon Great Maul Special Melee Weapon Datajack Build | -11 -10 -10 -10 -9 -8 -8 -8 -8 -8 -8 -8 ------- Run | Yrd Mat Min Exi Min Mat Gar Mat Gar Mat Gar Mat Slots Evolved 4 | . . . . . 4 . . . . . . Power . | . . . . . . . . . . . . Propulsion 1 | . . . . . 1 . . . . . . Utility 3 | . . . . . 3 . . . . . . Weapon . | . . . . . . . . . . . . Parts Attached 65 | 2 12 1 3 . 20 9 3 5 3 4 3 Power 5 | . 1 . 1 . . 1 . 1 . 1 . Engine 3 | . 1 . 1 . . 1 . . . . . Core 2 | . . . . . . . . 1 . 1 . Reactor . | . . . . . . . . . . . . Propulsion 15 | 2 . . 1 . 5 3 . . 3 . 1 Treads 14 | 2 . . 1 . 5 2 . . 3 . 1 Leg . | . . . . . . . . . . . . Wheel 1 | . . . . . . 1 . . . . . Hover . | . . . . . . . . . . . . Flight . | . . . . . . . . . . . . Utility 17 | . 4 . . . 5 1 2 2 . 1 2 Device 1 | . . . . . 1 . . . . . . Storage 2 | . 2 . . . . . . . . . . Processor 2 | . 1 . . . 1 . . . . . . Hackware 3 | . . . . . . 1 1 . . . 1 Protection 9 | . 1 . . . 3 . 1 2 . 1 1 Artifact . | . . . . . . . . . . . . Weapon 28 | . 7 1 1 . 10 4 1 2 . 2 . Energy Gun 11 | . 4 . . . 6 1 . . . . . Energy Cannon 6 | . . . . . 2 . 1 2 . 1 . Ballistic Gun 2 | . 2 . . . . . . . . . . Ballistic Cannon 2 | . . . . . . 1 . . . 1 . Launcher 4 | . . 1 1 . 1 1 . . . . . Special Weapon 1 | . . . . . . 1 . . . . . Impact Weapon 1 | . . . . . 1 . . . . . . Slashing Weapon . | . . . . . . . . . . . . Piercing Weapon . | . . . . . . . . . . . . Special Melee Weapon 1 | . 1 . . . . . . . . . . Unidentified Prototypes 3 | . . . . . 3 . . . . . . Corrupted Parts 1 | . . . . . . . . . . 1 . System Corruption 6 | . . . . . . . . . . 6 . Parts Lost 15 | . . . . . 2 4 . 5 . 4 . Power 3 | . . . . . . 1 . 1 . 1 . Propulsion 2 | . . . . . . . . 1 . 1 . Utility 7 | . . . . . 1 2 . 2 . 2 . Weapon 3 | . . . . . 1 1 . 1 . . . Highest Loss Streak 2 | . . . . . 1 1 . 2 . 2 . To Critical Strikes . | . . . . . . . . . . . . Average Backups 12 | 6 9 15 13 11 11 10 12 12 14 13 9 Power 1 | 1 2 3 2 2 1 . . . 1 1 1 Propulsion 2 | 4 1 3 3 3 2 3 2 2 2 3 1 Utility 2 | . 1 3 3 3 1 1 2 3 4 3 1 Weapon 5 | 1 3 5 4 2 6 6 6 5 6 4 5 Tool/Special . | . . . . . . . . . . . . Unused Backups 20 | . 2 . 2 . 6 . 2 . 2 2 4 Power 5 | . . . 1 . 2 . 1 . . . 1 Propulsion 3 | . . . . . 2 . 1 . . . . Utility 4 | . 2 . . . . . . . 1 . 1 Weapon 8 | . . . 1 . 2 . . . 1 2 2 Tool/Special . | . . . . . . . . . . . . Average Slot Usage (%) 95 | . 94 100 100 100 89 99 100 96 98 96 55 Engine 7 | . 13 14 14 14 9 8 9 1 . . . Core 2 | . . . . . . . . 7 9 8 . Treads 22 | . 27 28 28 28 26 25 18 16 17 17 15 Wheel 3 | . . . . . . 1 9 9 9 8 . Device 4 | . . . . . 8 9 9 7 . . . Storage 10 | . 14 14 14 14 9 9 9 9 9 9 9 Processor 6 | . 2 . . . 3 9 9 9 9 9 9 Hackware 5 | . . . . . . 8 9 9 9 8 6 Protection 12 | . 7 14 14 14 15 9 9 9 18 17 6 Energy Gun 8 | . 14 15 14 14 15 15 3 . . . . Energy Cannon 4 | . . . . . 1 . 14 12 8 4 . Ballistic Gun 1 | . 12 . . . . . . . . . . Launcher 1 | . . 12 4 14 1 1 . 2 2 1 . Impact Weapon 1 | . . . . . . 1 . . 7 7 9 Peak Build Rating 38 | 6 11 11 12 12 30 33 32 35 38 38 20 Average Rating 26 | 6 8 10 10 12 25 31 31 31 36 35 18 On Entrance 19 | 6 6 11 10 12 12 30 30 32 35 38 11 Avg Prop Armor Cover (%) 14 | . . . . . . 17 15 13 12 14 . Naked Turns . | . . . . . . . . . . . . Heaviest Build 57 | 13 34 34 34 34 44 40 48 57 57 55 27 Greatest Support 66 | 40 40 40 40 40 66 66 16 42 16 40 42 Greatest Overweight (x) 16 | . 8 . . . . 2 2 3 3 16 1 Average Overweight (x) 1 | . . . . . . . 2 2 3 2 . Largest Inventory Capacity 15 | 8 15 15 15 15 15 15 15 15 15 15 15 Average Capacity 14 | 8 13 15 15 15 15 15 15 15 15 15 15 Most Carried 15 | 6 15 15 15 14 15 15 15 15 15 15 12 Average Carried 13 | 5 9 15 14 14 14 12 13 12 14 13 8 Final Capacity 15 | 8 15 15 15 15 15 15 15 15 15 15 15 Final Carried 15 | 3 15 15 14 14 15 12 15 15 15 13 8 Class Distribution -------------------- 89% | Mutant 10% | Scavenger-Mutant Dominant Class ---------------- Mutant | -10/Materials Mutant | -10/Mines Mutant | -10/Exiles Mutant | -9/Mines Mutant | -8/Materials Mutant | -8/Garrison Mutant | -8/Materials Mutant | -8/Garrison Mutant | -8/Materials Mutant | -8/Garrison Mutant | -8/Materials Resources | -11 -10 -10 -10 -9 -8 -8 -8 -8 -8 -8 -8 ----------- Run | Yrd Mat Min Exi Min Mat Gar Mat Gar Mat Gar Mat Matter Collected 2212 | 224 291 79 . . 376 365 50 316 135 238 138 Remotely . | . . . . . . . . . . . . Salvage Created 6387 | . 462 54 . . 1013 1310 1155 888 578 775 152 Parts 349 | . 29 11 . . 58 83 42 55 32 37 2 Haulers Intercepted 12 | . 2 . . . 5 . 3 . 2 . . Recyclers Shooed 3 | . 1 1 . . . . 1 . . . . Parts Field Recycled . | . . . . . . . . . . . . Retrieved Matter . | . . . . . . . . . . . . Parts Self-Destructed . | . . . . . . . . . . . . Prevented . | . . . . . . . . . . . . Parts Restored . | . . . . . . . . . . . . Kills | -11 -10 -10 -10 -9 -8 -8 -8 -8 -8 -8 -8 ------- Run | Yrd Mat Min Exi Min Mat Gar Mat Gar Mat Gar Mat Combat Hostiles Destroyed 132 | . 9 6 . . 17 35 13 23 9 19 1 Melee 4 | . . . . . . . . . . 3 1 Guns 44 | . 9 2 . . 8 23 2 . . . . Cannons 27 | . . . . . 1 2 6 9 6 3 . AOE 41 | . . 4 . . 7 8 3 11 1 7 . Classes Destroyed 12 | . 6 1 . . 2 1 1 1 . . . Worker 5 | . 1 . . . 2 . 2 . . . . Hauler 12 | . 2 . . . 5 . 3 . 2 . . Recycler 6 | . 1 . . . 1 . 2 . . . 2 Operator 2 | . . . . . 1 . 1 . . . . Watcher 8 | . 2 . . . 2 . 2 . 2 . . Swarmer 48 | . 3 6 . . 10 16 . 7 2 3 1 Grunt 50 | . 6 . . . 4 12 7 9 3 9 . Duelist 3 | . . . . . . 1 . 1 1 . . Sentry 24 | . . . . . 3 6 5 3 3 4 . Specialist 1 | . . . . . . . 1 . . . . Programmer 6 | . . . . . . . . 3 . 3 . Zionite 1 | . . 1 . . . . . . . . . Thug 1 | . . . . . . 1 . . . . . Best Kill Streak 7 | . 5 3 . . 6 7 5 7 4 7 2 Combat Bots Only 7 | . 4 3 . . 4 7 3 7 3 7 1 Max Kills in Single Turn 4 | . 1 2 . . 4 3 3 3 1 2 1 Gunslinging 1 | . . . . . . 1 . . . . . Exploded 4 | . . 2 . . 4 2 2 3 1 2 . Melee 1 | . . . . . . . . . . 1 1 Uniques/NPCs Destroyed . | . . . . . . . . . . . . Combat | -11 -10 -10 -10 -9 -8 -8 -8 -8 -8 -8 -8 -------- Run | Yrd Mat Min Exi Min Mat Gar Mat Gar Mat Gar Mat Hostile Shots Fired 493 | . 28 16 . . 72 116 16 101 20 119 5 Missed 157 | . 5 4 . . 27 40 9 26 11 33 2 Hits 336 | . 23 12 . . 45 76 7 75 9 86 3 Melee 4 | . . . . . . 2 . . . 2 . Projectile 332 | . 23 12 . . 45 74 7 75 9 84 3 Critical Strikes 18 | . . . . . 2 2 1 6 1 6 . Damage Taken 5002 | . 241 192 . . 731 1203 168 1080 134 1222 31 Core 628 | . 47 23 . . 107 201 20 111 14 90 15 Absorbed by Shields 131 | . . . . . . 15 . 116 . . . Regen/Repaired (Parts) 137 | . . . . . 137 . . . . . . Core Remaining (%) 86 | 100 . . . 72 . . . . . . . Volleys Fired 384 | 2 37 11 . . 57 101 33 72 38 33 . Largest 2 | 2 2 2 . . 2 2 2 2 1 2 . Hottest 130 | 40 130 130 . . 126 100 126 126 75 115 . Shots Fired 554 | 4 74 15 . . 92 148 66 80 39 36 . Gun 311 | 4 74 8 . . 75 124 26 . . . . Cannon 186 | . . . . . 13 13 40 68 34 18 . Launcher 56 | . . 7 . . 4 10 . 12 5 18 . Special 1 | . . . . . . 1 . . . . . Kinetic 101 | 4 47 . . . . 13 . 27 . 10 . Thermal 35 | . 27 8 . . . . . . . . . Explosive 11 | . . 7 . . 4 . . . . . . Electromagnetic 406 | . . . . . 88 134 66 53 39 26 . Robot Hit Streak 35 | 1 7 3 . . 8 33 31 35 15 11 . Robot Miss Streak 11 | 2 5 11 . . 2 3 1 2 3 1 . Penetration Max . | . . . . . . . . . . . . Secondary Targets 7 | . 2 . . . 1 4 . . . . . Max Gunslinging Chain 1 | . 1 . . . 1 1 . . . . . Shots Hit Robots 371 | 1 50 6 2 . 65 84 54 45 25 36 3 Core Hits 226 | . 45 10 . . 32 62 23 27 13 13 1 Critical Kills . | . . . . . . . . . . . . Critical Parts Destroyed 12 | . . . . . . . . . . 11 1 Critical Strikes 26 | . . . . . 4 3 3 . 2 13 1 Blast 4 | . . . . . . 2 . . . 2 . Corrupt 10 | . . . . . 4 1 3 . 2 . . Smash 12 | . . . . . . . . . . 11 1 Melee Attacks 95 | . . . 2 . 2 13 . 1 3 67 7 Impact 93 | . . . . . 2 13 . 1 3 67 7 Slashing . | . . . . . . . . . . . . Piercing . | . . . . . . . . . . . . Sneak Attacks 5 | . . . 2 . . . . . . 1 2 Combat Hostiles 1 | . . . . . . . . . . 1 . Follow-up Attacks . | . . . . . . . . . . . . Damage Inflicted 12416 | 12 600 399 . . 1812 2513 1713 1817 1301 1995 254 Guns 3341 | 12 600 51 . . 1011 1256 411 . . . . Cannons 3729 | . . . . . 280 249 900 1050 876 374 . Explosions 4034 | . . 348 . . 521 1008 402 767 383 605 . Melee 1312 | . . . . . . . . . 42 1016 254 Ramming . | . . . . . . . . . . . . Kinetic 1209 | 12 268 . . . . 249 . 479 . 201 . Thermal 1587 | . 332 51 . . 111 348 402 145 98 100 . Explosive 899 | . . 348 . . 410 . . . 141 . . Electromagnetic 7409 | . . . . . 1291 1916 1311 1193 1020 678 . Impact 1312 | . . . . . . . . . 42 1016 254 Slashing . | . . . . . . . . . . . . Piercing . | . . . . . . . . . . . . Highest Corruption 16 | . . . . . . . . 5 5 16 16 Average Corruption 8 | . . . . . . . . 4 5 11 16 Corruption Purged . | . . . . . . . . . . . . Corruption Blocked . | . . . . . . . . . . . . Effects 82 | . . . . . . . . 19 17 40 6 Message Errors 20 | . . . . . . . . 5 4 8 3 Matter Fused 21 | . . . . . . . . 7 4 9 1 Heat Flow Errors 8 | . . . . . . . . . 3 4 1 Energy Discharges 12 | . . . . . . . . . 3 8 1 Parts Rejected 2 | . . . . . . . . . . 2 . Parts Fused 1 | . . . . . . . . . 1 . . Data Loss (minor) 7 | . . . . . . . . 4 . 3 . Data Loss (major) 2 | . . . . . . . . 2 . . . Misfires 3 | . . . . . . . . . 1 2 . Alerts 4 | . . . . . . . . 1 1 2 . Misdirections 1 | . . . . . . . . . . 1 . Weapon Failures 1 | . . . . . . . . . . 1 . Overload Shots . | . . . . . . . . . . . . Overflow Damage 1058 | . . 3 . . 26 13 21 15 88 703 189 Projectiles 67 | . . . . . 22 . 21 4 8 12 . Explosions 79 | . . 3 . . 4 13 . 11 48 . . Melee 912 | . . . . . . . . . 32 691 189 Knockbacks 2 | . . . . . . . . 2 . . . Impact . | . . . . . . . . . . . . Kinetic 2 | . . . . . . . . 2 . . . Secondary . | . . . . . . . . . . . . Self-Inflicted Damage 553 | . . 99 . . 97 115 60 116 . 66 . Shots 19 | . . 3 . . 3 3 2 5 . 3 . Rammed . | . . . . . . . . . . . . Targets Rammed . | . . . . . . . . . . . . Kicked . | . . . . . . . . . . . . Crushed . | . . . . . . . . . . . . Highest Temperature 339 | . 339 312 . . 90 118 93 114 333 275 98 Average Temperature 87 | . 110 182 . . 26 39 26 43 122 85 57 Received Heat Transfer 1299 | . 99 . . . 252 435 63 162 72 207 9 Effects 1 | . . . . . . . . . . 1 . Interference 1 | . . . . . . . . . . 1 . Siege Activations . | . . . . . . . . . . . . Martial Activations . | . . . . . . . . . . . . Shielding Activations . | . . . . . . . . . . . . Robots Disrupted . | . . . . . . . . . . . . Combat Hostiles . | . . . . . . . . . . . . Robots Corrupted 19 | . . . . . 2 2 4 3 2 6 . Combat Hostiles 16 | . . . . . 1 2 2 3 2 6 . Parts Fried 57 | . . . . . 7 5 13 9 12 8 3 Impact Corruptions 27 | . . . . . . . . . 1 21 5 Robots Melted . | . . . . . . . . . . . . Combat Hostiles . | . . . . . . . . . . . . Parts Melted 2 | . . 1 . . . . 1 . . . . Heat Transferred 1904 | . 439 65 . . 100 450 400 250 100 100 . Parts Sabotaged 6 | . . . . . . . . . . 6 . Parts Stolen . | . . . . . . . . . . . . Parts Stripped . | . . . . . . . . . . . . Power Chain Reactions 23 | . . . . . 2 7 4 6 2 2 . Alert | -11 -10 -10 -10 -9 -8 -8 -8 -8 -8 -8 -8 ------- Run | Yrd Mat Min Exi Min Mat Gar Mat Gar Mat Gar Mat Maximum Alert Level 5 | . . . . . 1 5 3 4 2 3 1 Low Security (%) 38 | 100 100 100 . 100 94 3 . . . 13 . Level 1 8 | . . . . . 5 14 . 7 8 11 100 Level 2 29 | . . . . . . 13 96 13 91 52 . Level 3 8 | . . . . . . 9 3 36 . 22 . Level 4 11 | . . . . . . 37 . 42 . . . Level 5 3 | . . . . . . 21 . . . . . High Security . | . . . . . . . . . . . . Max Security . | . . . . . . . . . . . . Peak Influence 1773 | . 134 105 . . 210 1773 863 1373 688 788 378 Initial 863 | . . 11 . . . 35 863 305 668 180 378 Average 490 | . 35 62 . . 83 1062 551 942 518 532 353 Influence Increases 5721 | . 318 203 . . 729 1818 461 1118 393 638 43 Destroy 0b10 Robot/C 2940 | . 180 120 . . 340 900 260 560 180 380 20 Destroy 0b10 Robot/NC 170 | . 30 . . . 60 . 50 . 20 . 10 Destroy Leader 402 | . 38 20 . . 76 50 90 30 58 30 10 Allied During Kill 105 | . . 11 . . 36 42 . 16 . . . Successful Hack 132 | . 25 . . . 65 12 17 . 13 . . Disable Machine 210 | . . . . . 90 15 30 15 45 15 . Anti-Garrison Action 1000 | . . . . . . 600 . 350 . 50 . Destroy Structure 417 | . . 52 . . 47 109 14 72 32 88 3 Partial Spotted 30 | . . . . . . . . 30 . . . Lose Combat Pursuer 315 | . 45 . . . 15 90 . 45 45 75 . Influence Decreases 5370 | . 288 159 74 . 674 100 1764 215 1489 137 470 Entered New Map 2390 | . . 19 74 . . 20 910 165 705 97 400 Time Decay 1740 | . 288 140 . . 504 . 404 . 334 . 70 Lost Part 150 | . . . . . 20 40 . 50 . 40 . Lost Ally 40 | . . . . . . 40 . . . . . Purge Threat 1050 | . . . . . 150 . 450 . 450 . . Squads Dispatched 8 | . . . . . 2 . 4 . 2 . . Investigation 4 | . . . . . 1 . 1 . 2 . . Extermination . | . . . . . . . . . . . . Reinforcement 4 | . . . . . 1 . 3 . . . . Assault . | . . . . . . . . . . . . Garrison . | . . . . . . . . . . . . Intercept . | . . . . . . . . . . . . Searches Triggered . | . . . . . . . . . . . . Construction Impeded 1 | . . . . . 1 . . . . . . Haulers Reinforced . | . . . . . . . . . . . . Active Scanning Responses . | . . . . . . . . . . . . Cargo Convoy Interrupts . | . . . . . . . . . . . . Stealth | -11 -10 -10 -10 -9 -8 -8 -8 -8 -8 -8 -8 --------- Run | Yrd Mat Min Exi Min Mat Gar Mat Gar Mat Gar Mat Distress Signals 7 | . . . . . 1 . 1 . 4 . 1 Communications Jammed . | . . . . . . . . . . . . Distress Signals . | . . . . . . . . . . . . Times Spotted 187 | . 18 6 . . 27 42 18 25 15 32 4 Peak Tracking Total 10 | . 4 3 . . 4 4 3 6 3 10 2 Tactical Retreats 18 | . 2 . . . 1 5 . 2 3 5 . Traps | -11 -10 -10 -10 -9 -8 -8 -8 -8 -8 -8 -8 ------- Run | Yrd Mat Min Exi Min Mat Gar Mat Gar Mat Gar Mat Traps Triggered 25 | . 5 . . . 2 3 1 7 . 7 . Indirectly 3 | . . . . . . 1 . 2 . . . Trap Hack Attempts 12 | . 12 . . . . . . . . . . Triggered . | . . . . . . . . . . . . Disarmed . | . . . . . . . . . . . . Reprogrammed 2 | . 2 . . . . . . . . . . Reused . | . . . . . . . . . . . . Traps Extracted . | . . . . . . . . . . . . Installed . | . . . . . . . . . . . . Triggered . | . . . . . . . . . . . . Machines | -11 -10 -10 -10 -9 -8 -8 -8 -8 -8 -8 -8 ---------- Run | Yrd Mat Min Exi Min Mat Gar Mat Gar Mat Gar Mat Machines Disabled 35 | . . . . . 6 14 2 8 3 2 . Max in Single Turn 4 | . . . . . 1 4 2 2 2 1 . Garrison Relay 14 | . . . . . . 8 . 5 . 1 . Phase Generator 2 | . . . . . . 1 . 1 . . . Machines Repaired . | . . . . . . . . . . . . Machines Dismantled . | . . . . . . . . . . . . Machines Sabotaged . | . . . . . . . . . . . . Overloaded Fab Kills . | . . . . . . . . . . . . Hacking | -11 -10 -10 -10 -9 -8 -8 -8 -8 -8 -8 -8 --------- Run | Yrd Mat Min Exi Min Mat Gar Mat Gar Mat Gar Mat Machines Accessed 46 | . 8 . 2 . 11 5 9 3 8 . . Terminals 38 | . 8 . . . 8 5 7 3 7 . . Fabricators . | . . . . . . . . . . . . Repair Stations 1 | . . . . . 1 . . . . . . Recycling Units . | . . . . . . . . . . . . Scanalyzers 2 | . . . . . 1 . 1 . . . . Garrison Access 3 | . . . . . 1 . 1 . 1 . . Total Hacks 142 | . 25 . 14 . 44 8 25 5 21 . . Successful 85 | . 12 . 14 . 30 3 16 1 9 . . Failed 55 | . 12 . . . 14 5 8 4 12 . . Catastrophic 6 | . . . . . 3 1 . 1 1 . . Database Lockouts 2 | . 1 . . . . . 1 . . . . Manual 77 | . 19 . 1 . 26 . 19 . 12 . . Terminals 113 | . 25 . . . 33 8 22 5 20 . . Fabricators . | . . . . . . . . . . . . Repair Stations 5 | . . . . . 5 . . . . . . Recycling Units . | . . . . . . . . . . . . Scanalyzers 7 | . . . . . 5 . 2 . . . . Garrison Access 3 | . . . . . 1 . 1 . 1 . . Terminal Hacks 41 | . 4 . 14 . 9 3 5 1 5 . . Record 14 | . 1 . 13 . . . . . . . . Robot Analysis 5 | . 1 . . . 3 . . . 1 . . Prototype ID Bank 4 | . 1 . . . 2 . 1 . . . . Open Door 1 | . . . . . . 1 . . . . . Emergency Access Points 1 | . . . . . . 1 . . . . . Terminal Index 1 | . . . . . 1 . . . . . . Scanalyzer Index 1 | . . . . . 1 . . . . . . Alert Level 2 | . . . . . . . 1 . 1 . . Unreport Threat 7 | . . . . . 1 . 3 . 3 . . Reprogram Traps 1 | . 1 . . . . . . . . . . Zone Layout 1 | . . . . . 1 . . . . . . Garrison Registry 2 | . . . . . . 1 . 1 . . . Proto ID Catalog 1 | . . . 1 . . . . . . . . Fabricator Hacks . | . . . . . . . . . . . . Repair Station Hacks 4 | . . . . . 4 . . . . . . Scan Component 2 | . . . . . 2 . . . . . . Repair 2 | . . . . . 2 . . . . . . Recycling Unit Hacks . | . . . . . . . . . . . . Scanalyzer 6 | . . . . . 5 . 1 . . . . Insert Component 2 | . . . . . 2 . . . . . . Analyze 2 | . . . . . 2 . . . . . . Retrieve Study 2 | . . . . . 1 . 1 . . . . Garrison Access Hacks 3 | . . . . . 1 . 1 . 1 . . Unlock Access 3 | . . . . . 1 . 1 . 1 . . Unauthorized Hacks 31 | . 8 . . . 11 . 9 . 3 . . Terminals 31 | . 8 . . . 11 . 9 . 3 . . Track 1 | . . . . . . . 1 . . . . Assimilate 1 | . . . . . . . 1 . . . . Botnet 9 | . 1 . . . 3 . 2 . 3 . . Operators 4 | . 2 . . . 2 . . . . . . Skim 16 | . 5 . . . 6 . 5 . . . . Fabricators . | . . . . . . . . . . . . Repair Stations . | . . . . . . . . . . . . Recycling Units . | . . . . . . . . . . . . Scanalyzers . | . . . . . . . . . . . . Garrison Access . | . . . . . . . . . . . . Data Cores Recovered 1 | . . . . . . . 1 . . . . Used . | . . . . . . . . . . . . Hacking Detections 35 | . 7 . . . 10 4 4 3 7 . . Full Trace Events 6 | . . . . . 2 1 . 1 2 . . Feedback Events . | . . . . . . . . . . . . Feedback Blocked . | . . . . . . . . . . . . Robot Schematics Acquired . | . . . . . . . . . . . . Robots Built . | . . . . . . . . . . . . Authchips . | . . . . . . . . . . . . Time . | . . . . . . . . . . . . Total Robot Build Rating . | . . . . . . . . . . . . Part Schematics Acquired 2 | . . . . . 2 . . . . . . Parts Built . | . . . . . . . . . . . . Authchips . | . . . . . . . . . . . . Time . | . . . . . . . . . . . . Total Part Build Rating . | . . . . . . . . . . . . Part Studies Acquired 2 | . . . . . 1 . 1 . . . . Parts Repaired 2 | . . . . . 2 . . . . . . Time 64 | . . . . . 64 . . . . . . Parts Recycled . | . . . . . . . . . . . . Recycled Matter . | . . . . . . . . . . . . Retrieved Matter . | . . . . . . . . . . . . Retrieved Components . | . . . . . . . . . . . . Parts Scanalyzed 2 | . . . . . 2 . . . . . . Part Schematics Acquired 2 | . . . . . 2 . . . . . . Parts Damaged . | . . . . . . . . . . . . Bothacking | -11 -10 -10 -10 -9 -8 -8 -8 -8 -8 -8 -8 ------------ Run | Yrd Mat Min Exi Min Mat Gar Mat Gar Mat Gar Mat Used RIF Installer . | . . . . . . . . . . . . Robots Hacked 3 | . . . 2 . . 1 . . . . . Non-combat 2 | . . . 2 . . . . . . . . Combat 1 | . . . . . . 1 . . . . . Robot Hacks Applied 3 | . . . 2 . . 1 . . . . . parse_system 3 | . . . 2 . . 1 . . . . . Relay Couplers Released 55 | . . . . . . 30 . 21 . 4 . Machine Destruction 55 | . . . . . . 30 . 21 . 4 . Fabnet Peak Effective % . | . . . . . . . . . . . . Robots Rewired . | . . . . . . . . . . . . Allies Hacked . | . . . . . . . . . . . . Hacks Repelled . | . . . . . . . . . . . . Allies | -11 -10 -10 -10 -9 -8 -8 -8 -8 -8 -8 -8 -------- Run | Yrd Mat Min Exi Min Mat Gar Mat Gar Mat Gar Mat Total Allies 7 | . . 2 . 3 . 2 . . . . . Largest Group 3 | . . 2 1 3 3 2 . . . . . Highest-Rated Group 62 | . . 42 28 40 40 62 . . . . . Highest-Rated Ally 31 | . . 31 28 16 16 31 . . . . . Initial Warlord ECA Mod 24 | . . . . . . . 13 13 21 21 24 Total Orders 1 | . . . . . 1 . . . . . . STAY 1 | . . . . . 1 . . . . . . Ally Attacks 66 | . . 3 . . 12 39 . 12 . . . Total Damage 2216 | . . 21 . . 105 1416 . 674 . . . Kills 16 | . . . . . 1 10 . 5 . . . Allies Corrupted 2 | . . . . . 1 1 . . . . . Allies Melted . | . . . . . . . . . . . . Turrets Deployed 3 | . . . . . . 2 . 1 . . . Intel | -11 -10 -10 -10 -9 -8 -8 -8 -8 -8 -8 -8 ------- Run | Yrd Mat Min Exi Min Mat Gar Mat Gar Mat Gar Mat Active Infowar (turns) 239 | . 239 . . . . . . . . . . Optics 239 | . 239 . . . . . . . . . . Robot Analysis Total 5 | . 1 . . . 3 . . . 1 . . Derelict Logs Recovered . | . . . . . . . . . . . . Drone Launches . | . . . . . . . . . . . . Drone Recoveries . | . . . . . . . . . . . . Exploration | -11 -10 -10 -10 -9 -8 -8 -8 -8 -8 -8 -8 ------------- Run | Yrd Mat Min Exi Min Mat Gar Mat Gar Mat Gar Mat Turns Passed 8975 | 12 1201 283 390 181 1544 1521 962 920 753 1063 145 Spaces Moved 4678 | 3 574 157 234 114 762 760 579 554 420 461 60 Core 4 | . 1 . . . . . . . . 3 . Treads 2481 | 1 573 157 234 114 762 575 . 4 . 1 60 Legs 2 | 2 . . . . . . . . . . . Wheels 2191 | . . . . . . 185 579 550 420 457 . Hover . | . . . . . . . . . . . . Flight . | . . . . . . . . . . . . Fastest Speed 105 | 120 160 160 160 160 145 130 120 120 135 105 157 Average Speed 142 | 133 160 160 160 160 148 145 123 121 135 132 177 Slowest Speed 850 | 160 450 160 160 160 160 153 130 157 135 850 250 Overloaded Moves . | . . . . . . . . . . . . Propulsion Burnouts . | . . . . . . . . . . . . Robots Hopped 5 | . . . . . . 5 . . . . . Potential Cave-ins 3 | . . . . . . . . . . 3 . Cave-ins Triggered . | . . . . . . . . . . . . Exploration Rate (%) 47 | 2 97 18 60 15 54 73 54 87 47 48 9 Regions Visited 11 Branch Regions 3 Pre-discovered Areas 7 | . 1 . 1 . 3 . 2 . . . . Known Exits Taken 3 | . . . . . 1 . 1 . 1 . . Unknown Exits Taken 5 | 1 1 1 1 1 . . . . . . . Scrap Searched 1 | . . 1 . . . . . . . . . Spaces Dug 61 | . . 9 . . 20 5 . . 2 22 3 Terrain Destroyed 320 | . . 63 . . 43 30 12 99 29 41 3 Melee 34 | . . . . . 2 5 . . 2 22 3 Projectile . | . . . . . . . . . . . . AOE 286 | . . 63 . . 41 25 12 99 27 19 . Terrain Rammed . | . . . . . . . . . . . . Walls Destroyed . | . . . . . . . . . . . . Machines Disabled . | . . . . . . . . . . . . Actions | -11 -10 -10 -10 -9 -8 -8 -8 -8 -8 -8 -8 --------- Run | Yrd Mat Min Exi Min Mat Gar Mat Gar Mat Gar Mat Total 6259 | 9 778 173 249 113 1079 988 759 716 565 745 85 Wait 800 | . 113 5 . . 194 84 127 45 86 133 13 Move 4660 | 2 573 156 233 113 762 749 579 553 420 460 60 Hop 5 | . . . . . . 5 . . . . . Pick Up 54 | . 16 . 4 . 13 2 8 3 5 3 . Fast Attach 32 | . 15 . . . 10 2 . 1 2 2 . Attach 18 | 1 . . . . 3 4 . 3 . 3 4 Detach 5 | . . . . . 3 2 . . . . . Swap 70 | 1 4 1 5 . 17 19 5 7 4 7 . Drop 56 | 3 8 . 5 . 18 3 7 1 7 3 1 Fire 384 | 2 37 11 . . 57 101 33 72 38 33 . Melee 95 | . . . 2 . 2 13 . 1 3 67 7 Ram . | . . . . . . . . . . . . Kick . | . . . . . . . . . . . . Crush . | . . . . . . . . . . . . Escape Stasis 68 | . . . . . . 4 . 30 . 34 . Rewire . | . . . . . . . . . . . . Trap 12 | . 12 . . . . . . . . . . Miscellaneous . | . . . . . . . . . . . . Route ------- -11/Scrapyard -10/Materials (discovered 5 exits: *Mat x3 / [*Min] / [*Sub]) -10/Mines (discovered 3 exits: Mat x2 / *Exi) -10/Exiles -9/Mines (discovered 2 exits: *Mat x2) -8/Materials (discovered 6 exits: *Fac x3 / *Sto x2 / Gar) -8/Garrison (discovered 4 exits: *Mat x4) -8/Materials (discovered 6 exits: *Fac x3 / *Sto x2 / Gar) -8/Garrison (discovered 3 exits: *Mat x3) -8/Materials (discovered 2 exits: *Fac / Gar) -8/Garrison -8/Materials History --------- Turn | Location | Event 1 | -11/Scrapyard | Discovered new exit (range 1) 13 | -11/Scrapyard | Entered Materials 244 | -10/Materials | Discovered new exit (range 3) 309 | -10/Materials | Build established: Mutant 372 | -10/Materials | Discovered new exit (range 6) 451 | -10/Materials | Learned Storage trap positions 478 | -10/Materials | Discovered new exit (range 7) 530 | -10/Materials | Learned 4 Recycling zone layouts 557 | -10/Materials | Learned Recycling recycling unit intel 585 | -10/Materials | Identified exit to Materials 627 | -10/Materials | Central database locked down 633 | -10/Materials | Learned location of 1 exit from Storage 1017 | -10/Materials | Discovered new exit (range 12) 1214 | -10/Materials | Entered Mines 1378 | -10/Mines | Deemed a non-threat by the Exiles lab entrance 1380 | -10/Mines | Discovered new exit (range 5) 1445 | -10/Mines | Assembled infested the area 1450 | -10/Mines | Assisted by a Guerilla fighting off Assembled 1497 | -10/Mines | Entered Exiles 1497 | -10/Exiles | Accompanied by 1 ally 1527 | -10/Exiles | Led the pair of lost Derelicts to a safe place 1555 | -10/Exiles | Met 8R-AWN 1581 | -10/Exiles | Met EX-HEX 1652 | -10/Exiles | Met EX-BIN 1676 | -10/Exiles | Aligned with FarCom system 1678 | -10/Exiles | Given EX-Vault access code 1715 | -10/Exiles | Opened EX-Vault 1731 | -10/Exiles | Found Deploy-a-Sentry 1733 | -10/Exiles | Found Deploy-a-Sentry 1736 | -10/Exiles | Found Deploy-a-Sentry 1769 | -10/Exiles | Warned to stay clear of 0b10 Research branches 1820 | -10/Exiles | Learned location of Zion (-7) 1822 | -10/Exiles | Met EX-DEC 1870 | -10/Exiles | Discovered new exit (range 11) 1887 | -10/Exiles | Left Exiles lab with Deploy-a-Sentry 1887 | -10/Exiles | Entered Mines 1903 | -9/Mines | Discovered new exit (range 10) 1937 | -9/Mines | Discovered new exit (range 11) 1955 | -9/Mines | Assisted by bots powering up and referring to "LRC-V3" 2068 | -9/Mines | Entered Materials 2068 | -8/Materials | Accompanied by 3 allies 2068 | -8/Materials | Evolved 4 slots: Propulsion x1, Utility x3 2503 | -8/Materials | Build established: Scavenger-Mutant 2507 | -8/Materials | Discovered new exit (range 9) 2636 | -8/Materials | Discovered new exit (range 12) 2637 | -8/Materials | Learned 2 Lower Caves zone layouts 2670 | -8/Materials | Learned Factory security intel 2695 | -8/Materials | Identified exit to Storage 2695 | -8/Materials | Identified exit to Factory 2714 | -8/Materials | Learned Factory security intel 2718 | -8/Materials | Learned location of Recycling (-8) 2732 | -8/Materials | Learned Storage emergency access door positions 2884 | -8/Materials | Repaired Lgt. Armor Plating 2905 | -8/Materials | Build established: Mutant 3283 | -8/Materials | Repaired Shock Rifle 3612 | -8/Materials | Identified exit to Garrison 3612 | -8/Materials | Entered Garrison 3622 | -8/Garrison | Triggered checkpoint 3661 | -8/Garrison | Discovered new exit (range 5) 3688 | -8/Garrison | Destroyed 7 combat bots 3724 | -8/Garrison | Discovered new exit (range 32) 3724 | -8/Garrison | Discovered new exit (range 53) 3724 | -8/Garrison | Discovered new exit (range 52) 3724 | -8/Garrison | Discovered new exit (range 32) 3728 | -8/Garrison | Triggered checkpoint 3773 | -8/Garrison | Rescued a captive Derelict 3774 | -8/Garrison | Rescued a captive Derelict 3797 | -8/Garrison | Garrison Relay disabled 3885 | -8/Garrison | Triggered checkpoint 3885 | -8/Garrison | Triggered checkpoint 3902 | -8/Garrison | Triggered checkpoint 3946 | -8/Garrison | Triggered checkpoint 4095 | -8/Garrison | Garrison Relay disabled 4096 | -8/Garrison | Triggered checkpoint 4112 | -8/Garrison | Core integrity fell below 50% 4181 | -8/Garrison | DAS Turret deployed 4200 | -8/Garrison | DAS Turret deployed 4239 | -8/Garrison | Garrison Relay disabled 4408 | -8/Garrison | Phase Generator disabled 4686 | -8/Garrison | Garrison Relay disabled 5055 | -8/Garrison | Garrison Relay disabled 5133 | -8/Garrison | Entered Materials 5144 | -8/Materials | Build established: Scavenger-Mutant 5203 | -8/Materials | Discovered exit to Storage (range 15) 5357 | -8/Materials | Met 7R-MNS 5558 | -8/Materials | Central database locked down 5616 | -8/Materials | Build established: Mutant 5736 | -8/Materials | Learned Factory trap positions 5876 | -8/Materials | Learned location of 1 exit from Recycling 5977 | -8/Materials | Learned 2 Lower Caves zone layouts 6033 | -8/Materials | Learned location of Extension (-5) 6095 | -8/Materials | Identified exit to Garrison 6095 | -8/Materials | Entered Garrison 6115 | -8/Garrison | Triggered checkpoint 6164 | -8/Garrison | Garrison Relay disabled 6234 | -8/Garrison | Phase Generator disabled 6274 | -8/Garrison | Triggered checkpoint 6309 | -8/Garrison | Destroyed 7 combat bots 6337 | -8/Garrison | DAS Turret deployed 6439 | -8/Garrison | Triggered checkpoint 6440 | -8/Garrison | Garrison Relay disabled 6468 | -8/Garrison | Discovered new exit (range 8) 6529 | -8/Garrison | Triggered checkpoint 6581 | -8/Garrison | Triggered checkpoint 6606 | -8/Garrison | Garrison Relay disabled 6627 | -8/Garrison | Garrison Relay disabled 6649 | -8/Garrison | Discovered new exit (range 15) 6811 | -8/Garrison | Discovered new exit (range 48) 6811 | -8/Garrison | Discovered new exit (range 48) 6811 | -8/Garrison | Discovered new exit (range 23) 6837 | -8/Garrison | Triggered checkpoint 7015 | -8/Garrison | Entered Materials 7520 | -8/Materials | Core integrity fell below 20% 7624 | -8/Materials | Discovered exit to Factory (range 15) 7768 | -8/Materials | Identified exit to Garrison 7768 | -8/Materials | Entered Garrison 8003 | -8/Garrison | Destroyed 7 combat bots 8094 | -8/Garrison | Triggered checkpoint 8133 | -8/Garrison | System corruption reached 10% 8406 | -8/Garrison | Triggered checkpoint 8668 | -8/Garrison | Garrison Relay disabled 8672 | -8/Garrison | Triggered checkpoint 8739 | -8/Garrison | Discovered new exit (range 10) 8831 | -8/Garrison | Entered Materials 8976 | -8/Materials | Destroyed by Y-45 Defender with Beam Rifle Last Messages --------------- 08881_ Sml. Storage Unit fried. 08881_ R-06 Scavenger destroyed. 08884_ Acquired 85 matter. 08894_ Sneak attack on R-06 Scavenger. 08894_ Destroyed Com. Wheel. 08894_ Destroyed Tractor Beam. 08894_ R-06 Scavenger system corrupted by crushing effect. 08894_ Com. Wheel fried. 08894_ Unknown Engine fried. 08894_ R-06 Scavenger destroyed. 08895_ OHOALOZAQYJX7OZKCCEKMQQOPE 08897_ Acquired 53 matter. 08917_ System corrupted: Energy discharge (-21). 08946_ SM1QPLQARC0WFIA8 :ZOFED:BV =MNSJG03K&WF 08967_ U-05 Engineer builds a Wall. 08969_ S-10 Pest destroyed. 08972_ The unstable cave ceiling collapses. 08972_ 8 Matter crushed. 08974_ DLURT2/ZWG,:PSQHMFGHDPZOAC 3JZYWMBB Map ----- +----------------------------------------------------+ | ????????????????????????????# ####| #????? | | ????????????????????????????# ???# #????? | | ????????????????????????????# ???# #????? | | ????????????????????????????# ???# #????? | | ???????????????????????????? ???# #????? | | ??????????????????????????? ???# #????? | | ?????????????????????????? ???# #????? | | ?????????????????????????#######???### #????? | | ?????????????????????????????????????# #????? | | ?????????????????????????????????????# #????? | | ?????????????????????????????????????# #????? | | ?????????????????w?????????????????Y?# #????? | | ?????????????????????????????????????# #????? | | ?????????????????????????????????????# #????? | | ?????????????????????????????????????# #????? | | ????????????????????"????????????????# #????? | | ????????????????? """""????###########+###??? | | ?????????????????? """ ???# ! = #??? | | ??????????????????? ??# #??? | | ??????????????????? ??# """ """ """ #??? | | ???????????????????""" ### """ """ """ #??? | | ???????????????????"""" ""# """ """ """ #??? | | ??????????????????""""" T"#[ #??? | | ????????????????? """"" ""#######+#######??? | | ??????????????# """ #;##### #??????? | | ??????????????# @ u #??????? | | ??????????????# s Y #??????? | | ??????????????# u = u #??????? | | ??????????????# u############## #??????? | | ??????????????# ?????????????????#+###??????? | | ????????????????????????????????????????????? | | ????????????????????????????????????????????? | | ??????????????b?????????????????????????????? | | ?????????????g??????????????????????????????? | | ????????????????????????????????????????????? | | ????????????????????????????????????????????? | | ????????????????????????????????????????????? | | ????????????????????????????????????????????? | | ????????????????????????????????????????????? | | ????????????????????????????????????????????? | | ????????????????????????????????????????????? | | ????????????????????????????????????????????? | | ????????????????????????????????????????????? | | ????????????????????????????????????????????? | | ????????????????????????????????????????????? | | ????????????????????????????????????????????? | | ????????????????????????????????????????????? | | ????????????????????????????????????????????? | | ????????????????????????????????????????????? | | ????????????????????????????????????????????? | +----------------------------------------------------+ Best States ------------- Heat Dissipation 45 Energy Generation 15 Energy Capacity 265 Matter Stores 300 Matter Capacity 300 Sight Range 18 Terrain Scan Density 10 Armor Coverage 450 Evasion (%) 40 Targeting Accuracy 8 Recoil Reduction 3 Offensive Hacking 10 Item Schematics ----------------- EM Pulse Cannon | -8/Materials | Scanalyzed Com. Wheel | -8/Materials | Scanalyzed Robot Schematics ------------------ None Fabricated ------------ Nothing Repaired ---------- Lgt. Armor Plating | 6% | -8/Materials Shock Rifle | 3% | -8/Materials Studied --------- EM Pulse Cannon | -8/Materials | Hacked Com. Wheel | -8/Materials | Hacked Alien Tech Used ----------------- None Achievements -------------- None Challenges ------------ None Game ------ Seed EncryptedContainmentDeck Manual? 0 Play Time 01:10:11 Cumulative 331.8 hours Start 2026.03.12 @ 14:36:09 End 2026.03.12 @ 20:01:49 Sessions 3 Manual Loads 0 Difficulty Rogue Special Mode None Game No. 275 Rogue 239 Adventurer 36 Explorer 0 Win Type - Total 4 Types 2/0/0/1/0/0/0/1/0/0 Lore% 59 Gallery% 62 Achievement% 43 Wizard Run 0 Options --------- Layout 1 ASCII 0 Keyboard 0 Movement Numpad Keybinds 0 Fullscreen 1 Font 48/Smallcaps Map View 50x35 Zoom Use 0% Tactical HUD 1 Map Filters NONE Filters NONE Steam 1 RUN: 9aecf3ca-210a-4c67-8f0d-8678f2740fa3